[Event "5th Ordu Open 2019"]
[Site "Ordu"]
[Date "2019.05.03"]
[Round "7.3"]
[White "Dogan, Nazmi Can"]
[Black "Asgari, Morteza"]
[Result "1/2-1/2"]
[ECO "A48"]
[WhiteElo "2214"]
[BlackElo "2249"]
[Annotator "NA"]
[PlyCount "77"]
[EventDate "2019.04.29"]
[EventType "swiss"]
[EventCountry "TUR"]
[SourceTitle "playchess.com"]
[Source "ChessBase"]
[SourceQuality "1"]
[TimeControl "5400+30"]

1. d4 {[%emt 0:00:30]} Nf6 {[%emt 0:00:30]} 2. Nf3 {[%emt 0:00:30]} g6 {[%emt 0:00:30]} 3. Bg5 {[%emt 0:00:30]} Bg7 {[%emt 0:00:30]} 4. Nbd2 {[%emt 0:00:00]} O-O {[%emt 0:00:30]} 5. c3 {[%emt 0:00:00]} d6 {[%emt 0:01:30]} 6. e4 {[%emt 0:00:30]} c5 {[%emt 0:00:00]} 7. dxc5 {[%emt 0:02:30]} dxc5 {[%emt 0:00:00]} 8. Bc4 {[%emt 0:05:30]} Nc6 {[%emt 0:00:30]} 9. O-O {[%emt 0:00:00]} Qc7 {[%emt 0:00:30]} 10. Bh4 {[%emt 0:04:00]} Nh5 {[%emt 0:00:30]} 11. Re1 {[%emt 0:04:30]} h6 {[%emt 0:01:30]} 12. Nf1 {[%emt 0:11:30]} Rd8 {[%emt 0:12:30]} 13. Qc2 {[%emt 0:08:30]} Bg4 {[%emt 0:08:30]} 14. Be2 {[%emt 0:03:30]} Qf4 {[%emt 0:03:30]} 15. Bg3 {[%emt 0:03:30]} Nxg3 {[%emt 0:01:30]} 16. hxg3 {[%emt 0:00:30]} Qc7 {[%emt 0:00:30]} 17. Ne3 {[%emt 0:00:30]} Bd7 {[%emt 0:05:30]} 18. Nd5 {[%emt 0:04:30]} Qb8 {[%emt 0:00:30]} 19. Bb5 {[%emt 0:13:30]} Kf8 {[%emt 0:01:30]} 20. a4 {[%emt 0:02:30]} Be8 {[%emt 0:13:30]} 21. a5 {[%emt 0:05:30]} e6 {[%emt 0:02:30]} 22. Ne3 {[%emt 0:02:30]} Qc7 {[%emt 0:00:30]} 23. a6 {[%emt 0:04:30]} Rab8 {[%emt 0:20:30]} 24. Qe2 {[%emt 0:04:03]} bxa6 {[%emt 0:02:30]} 25. Bxa6 {[%emt 0:01:18]} Na5 {[%emt 0:02:30]} 26. Ra2 {[%emt 0:01:52]} Rd6 {[%emt 0:00:30]} 27. Bd3 {[%emt 0:02:45]} Qd8 {[%emt 0:06:19]} 28. Rxa5 {[%emt 0:01:11]} Qxa5 {[%emt 0:01:37]} 29. Nc4 {[%emt 0:00:04]} Qd8 {[%emt 0:01:03]} 30. Nxd6 {[%emt 0:00:10]} Qxd6 {[%emt 0:00:00]} 31. Ra1 {[%emt 0:00:55]} Qb6 {[%emt 0:01:04]} 32. Ra2 {[%emt 0:00:05]} Qb3 {[%emt 0:01:04]} 33. Bc4 {[%emt 0:04:15]} Bb5 {[%emt 0:00:30]} 34. Bxb3 {[%emt 0:00:30]} Bxe2 {[%emt 0:00:30]} 35. Nd2 {[%emt 0:00:00]} Rd8 {[%emt 0:01:43]} 36. Nc4 {[%emt 0:01:19]} Bxc4 {[%emt 0:04:43]} 37. Bxc4 {[%emt 0:00:30]} Rd1+ {[%emt 0:00:00]} 38. Kh2 {[%emt 0:00:41]} Rd2 {[%emt 0:00:00]} 39. f4 {[%emt 0:01:23]} 1/2-1/2

[Event "5th Ordu Open 2019"]
[Site "Ordu"]
[Date "2019.05.03"]
[Round "7.6"]
[White "Klekowski, Maciej"]
[Black "Odeev, Handszar"]
[Result "1-0"]
[ECO "E61"]
[WhiteElo "2502"]
[BlackElo "2394"]
[Annotator "RC"]
[PlyCount "81"]
[EventDate "2019.04.29"]
[EventType "swiss"]
[EventCountry "TUR"]
[SourceTitle "playchess.com"]
[Source "ChessBase"]
[SourceQuality "1"]
[TimeControl "5400+30"]

1. d4 {[%emt 0:00:30]} Nf6 {[%emt 0:01:30]} 2. c4 {[%emt 0:00:30]} d6 {[%emt 0:09:30]} 3. Nc3 {[%emt 0:01:30]} e5 {[%emt 0:03:30]} 4. e3 {[%emt 0:04:30]} Nbd7 {[%emt 0:03:30]} 5. g3 {[%emt 0:10:30]} g6 {[%emt 0:18:30]} 6. Bg2 {[%emt 0:00:30]} Bg7 {[%emt 0:00:00]} 7. Nge2 {[%emt 0:00:30]} O-O {[%emt 0:01:00]} 8. O-O {[%emt 0:00:30]} Re8 {[%emt 0:01:30]} 9. h3 {[%emt 0:03:30]} h5 {[%emt 0:02:30]} 10. e4 {[%emt 0:01:30]} a6 {[%emt 0:04:30]} 11. Bg5 {[%emt 0:05:30]} exd4 {[%emt 0:10:30]} 12. Nxd4 {[%emt 0:01:30]} Rb8 {[%emt 0:00:30]} 13. a4 {[%emt 0:08:30]} c6 {[%emt 0:12:30]} 14. a5 {[%emt 0:03:30]} Qc7 {[%emt 0:01:30]} 15. Re1 {[%emt 0:01:30]} c5 {[%emt 0:04:30]} 16. Nc2 {[%emt 0:00:00]} b6 {[%emt 0:00:30]} 17. Ne3 {[%emt 0:06:00]} Bb7 {[%emt 0:01:30]} 18. Qc2 {[%emt 0:06:30]} bxa5 {[%emt 0:00:30]} 19. Rad1 {[%emt 0:00:00]} Bc6 {[%emt 0:02:22]} 20. Re2 {[%emt 0:01:00]} Re6 {[%emt 0:03:40]} 21. g4 {[%emt 0:07:30]} hxg4 {[%emt 0:03:57]} 22. hxg4 {[%emt 0:00:00]} Qb7 {[%emt 0:06:48]} 23. Bf4 {[%emt 0:03:00]} Bf8 {[%emt 0:05:29]} 24. g5 {[%emt 0:01:30]} Ne8 {[%emt 0:00:54]} 25. Bh3 {[%emt 0:00:30]} Rxe4 {[%emt 0:00:30]} 26. Nxe4 {[%emt 0:00:30]} Bxe4 {[%emt 0:00:30]} 27. Qd2 {[%emt 0:00:30]} Bf3 {[%emt 0:00:00]} 28. Bg2 {[%emt 0:00:30]} Bxg2 {[%emt 0:00:51]} 29. Nxg2 {[%emt 0:00:00]} Qb3 {[%emt 0:01:03]} 30. Rde1 {[%emt 0:00:00]} Ng7 {[%emt 0:00:19]} 31. Bxd6 {[%emt 0:00:30]} Nf5 {[%emt 0:00:30]} 32. Bxb8 {[%emt 0:01:30]} Nd4 {[%emt 0:00:02]} 33. Qf4 {[%emt 0:00:30]} Nxe2+ {[%emt 0:01:30]} 34. Rxe2 {[%emt 0:00:30]} Nxb8 {[%emt 0:00:00]} 35. Re8 {[%emt 0:00:30]} Qd1+ {[%emt 0:00:04]} 36. Re1 {[%emt 0:00:30]} Qd8 {[%emt 0:00:02]} 37. Ne3 {[%emt 0:00:30]} Be7 {[%emt 0:00:00]} 38. Rd1 {[%emt 0:00:00]} Qc8 {[%emt 0:00:40]} 39. Nd5 {[%emt 0:00:00]} Bd8 {[%emt 0:00:30]} 40. Re1 {[%emt 0:00:30]} Kf8 {[%emt 0:01:22]} 41. Qh4 {[%emt 0:00:00]} 1-0

[Event "5th Ordu Open 2019"]
[Site "Ordu"]
[Date "2019.05.03"]
[Round "7.11"]
[White "Rahmatian, Shayan"]
[Black "Aktas, Ilker"]
[Result "0-1"]
[ECO "E20"]
[WhiteElo "1991"]
[BlackElo "1861"]
[Annotator "NA"]
[PlyCount "63"]
[EventDate "2019.04.29"]
[EventType "swiss"]
[EventCountry "TUR"]
[SourceTitle "playchess.com"]
[Source "ChessBase"]
[SourceQuality "1"]
[TimeControl "5400+30"]

1. d4 {[%emt 0:32:30]} Nf6 {[%emt 0:30:30]} 2. c4 {[%emt 0:00:30]} e6 {[%emt 0:00:30]} 3. Nc3 {[%emt 0:00:30]} Bb4 {[%emt 0:00:30]} 4. f3 {[%emt 0:00:30]} c5 {[%emt 0:00:30]} 5. a3 {[%emt 0:00:00]} Ba5 {[%emt 0:00:30]} 6. dxc5 {[%emt 0:10:00]} Bxc3+ {[%emt 0:00:30]} 7. bxc3 {[%emt 0:00:30]} Qa5 {[%emt 0:00:30]} 8. e4 {[%emt 0:03:30]} Qxc5 {[%emt 0:02:30]} 9. a4 {[%emt 0:04:30]} Na6 {[%emt 0:01:30]} 10. Qd2 {[%emt 0:08:30]} Qc7 {[%emt 0:03:30]} 11. Ne2 {[%emt 0:04:30]} Nc5 {[%emt 0:01:30]} 12. Nd4 {[%emt 0:02:30]} a6 {[%emt 0:01:30]} 13. Ba3 {[%emt 0:02:30]} d6 {[%emt 0:00:30]} 14. Rd1 {[%emt 0:06:30]} O-O {[%emt 0:01:30]} 15. g4 {[%emt 0:01:41]} Rd8 {[%emt 0:02:30]} 16. e5 {[%emt 0:09:10]} Ne8 17. exd6 {[%emt 0:03:23]} Rxd6 {[%emt 0:08:00]} 18. Qg5 {[%emt 0:01:15]} b6 {[%emt 0:06:30]} 19. a5 {[%emt 0:00:04]} e5 {[%emt 0:00:30]} 20. axb6 {[%emt 0:02:47]} Rxb6 {[%emt 0:05:30]} 21. Nf5 {[%emt 0:01:07]} Bxf5 {[%emt 0:02:30]} 22. gxf5 {[%emt 0:00:02]} f6 {[%emt 0:09:30]} 23. Qe3 {[%emt 0:00:19]} Rc8 {[%emt 0:00:54]} 24. Rd5 {[%emt 0:02:20]} Rb1+ {[%emt 0:02:38]} 25. Kf2 {[%emt 0:00:21]} Na4 {[%emt 0:00:58]} 26. c5 {[%emt 0:00:56]} Kh8 {[%emt 0:01:16]} 27. Qd3 {[%emt 0:01:38]} Ra1 {[%emt 0:00:52]} 28. c4 {[%emt 0:00:48]} Qa5 {[%emt 0:03:20]} 29. Qb3 {[%emt 0:01:02]} Qe1+ {[%emt 0:01:24]} 30. Kg2 {[%emt 0:00:01]} Nc3 {[%emt 0:07:27]} 31. Bb4 {[%emt 0:00:44]} Qe3 {[%emt 0:04:53]} 32. Qxc3 {[%emt 0:01:22]} 0-1

[Event "5th Ordu Open 2019"]
[Site "Ordu"]
[Date "2019.05.03"]
[Round "7.12"]
[White "Caymaz, Umit Oguz"]
[Black "Aydin, Aytac"]
[Result "1-0"]
[ECO "E93"]
[WhiteElo "1442"]
[BlackElo "1473"]
[Annotator "NA"]
[PlyCount "97"]
[EventDate "2019.04.29"]
[EventType "swiss"]
[EventCountry "TUR"]
[SourceTitle "playchess.com"]
[Source "ChessBase"]
[SourceQuality "1"]
[TimeControl "5400+30"]

1. Nf3 {[%emt 0:30:30]} Nf6 {[%emt 0:30:30]} 2. c4 {[%emt 0:00:30]} g6 {[%emt 0:01:30]} 3. Nc3 {[%emt 0:00:30]} Bg7 {[%emt 0:00:30]} 4. d4 {[%emt 0:00:30]} d6 {[%emt 0:00:30]} 5. h3 {[%emt 0:00:30]} O-O {[%emt 0:00:30]} 6. e4 {[%emt 0:00:30]} Nbd7 {[%emt 0:01:30]} 7. Be2 {[%emt 0:03:30]} e5 {[%emt 0:02:30]} 8. d5 {[%emt 0:06:30]} Nc5 {[%emt 0:02:30]} 9. Qc2 {[%emt 0:00:30]} a5 {[%emt 0:00:30]} 10. Be3 {[%emt 0:00:30]} Nfd7 {[%emt 0:05:30]} 11. O-O {[%emt 0:01:30]} f5 {[%emt 0:01:30]} 12. exf5 {[%emt 0:03:30]} Rxf5 {[%emt 0:00:30]} 13. Nd2 {[%emt 0:01:30]} b6 {[%emt 0:03:30]} 14. Bg4 {[%emt 0:01:30]} Rf8 15. Nde4 {[%emt 0:01:30]} Nxe4 {[%emt 0:06:00]} 16. Nxe4 {[%emt 0:00:00]} Nc5 {[%emt 0:05:30]} 17. Bxc8 {[%emt 0:06:00]} Rxc8 {[%emt 0:02:30]} 18. Ng5 {[%emt 0:09:30]} h6 {[%emt 0:01:30]} 19. Nf3 {[%emt 0:04:30]} Qf6 {[%emt 0:01:30]} 20. Bxc5 {[%emt 0:07:06]} bxc5 {[%emt 0:00:30]} 21. Nd2 {[%emt 0:00:19]} e4 {[%emt 0:09:30]} 22. b3 {[%emt 0:08:58]} Qc3 {[%emt 0:01:30]} 23. Rac1 {[%emt 0:00:37]} Qxc2 {[%emt 0:00:30]} 24. Rxc2 {[%emt 0:00:07]} Rce8 {[%emt 0:01:30]} 25. Re1 {[%emt 0:00:11]} Rf4 {[%emt 0:12:53]} 26. g3 {[%emt 0:01:56]} Rf7 {[%emt 0:00:17]} 27. Rxe4 {[%emt 0:02:19]} Rfe7 {[%emt 0:00:00]} 28. Rxe7 {[%emt 0:02:53]} Rxe7 {[%emt 0:00:30]} 29. Kf1 {[%emt 0:00:30]} Kf7 {[%emt 0:00:30]} 30. Nf3 {[%emt 0:00:30]} Kf6 {[%emt 0:00:30]} 31. Re2 {[%emt 0:00:30]} Rxe2 {[%emt 0:00:30]} 32. Kxe2 {[%emt 0:00:30]} g5 {[%emt 0:00:30]} 33. g4 {[%emt 0:00:30]} Ke7 {[%emt 0:00:30]} 34. Kd3 {[%emt 0:01:12]} Ba1 {[%emt 0:05:32]} 35. Ke4 {[%emt 0:00:33]} Kf6 {[%emt 0:00:59]} 36. Nd2 {[%emt 0:00:21]} Bb2 {[%emt 0:01:50]} 37. Nf1 {[%emt 0:00:14]} Bc3 {[%emt 0:01:10]} 38. Ng3 {[%emt 0:00:45]} Be1 {[%emt 0:00:28]} 39. Nh5+ {[%emt 0:00:37]} Kg6 {[%emt 0:00:10]} 40. f4 {[%emt 0:00:01]} gxf4 {[%emt 0:00:35]} 41. Nxf4+ {[%emt 0:01:59]} Kg5 {[%emt 0:00:46]} 42. Ne6+ {[%emt 0:00:50]} Kh4 {[%emt 0:00:06]} 43. Nxc7 {[%emt 0:00:27]} Kxh3 {[%emt 0:00:30]} 44. Kf5 {[%emt 0:00:00]} Bg3 {[%emt 0:00:56]} 45. Na6 {[%emt 0:00:00]} Kh4 {[%emt 0:00:25]} 46. Nb8 {[%emt 0:00:52]} Be5 {[%emt 0:00:32]} 47. Nc6 {[%emt 0:00:00]} Bg3 {[%emt 0:00:13]} 48. Nxa5 {[%emt 0:00:00]} Bh2 {[%emt 0:01:02]} 49. Nc6 {[%emt 0:00:02]} 1-0

[Event "5th Ordu Open 2019"]
[Site "Ordu"]
[Date "2019.05.03"]
[Round "7.15"]
[White "Lortkipanidze, Goga"]
[Black "Makhatadze, Khatia"]
[Result "0-1"]
[ECO "E32"]
[WhiteElo "1324"]
[BlackElo "1293"]
[Annotator "NA"]
[PlyCount "110"]
[EventDate "2019.04.29"]
[EventType "swiss"]
[EventCountry "TUR"]
[SourceTitle "playchess.com"]
[Source "ChessBase"]
[SourceQuality "1"]
[TimeControl "5400+30"]

1. d4 {[%emt 0:30:30]} Nf6 {[%emt 0:30:30]} 2. c4 {[%emt 0:00:00]} e6 {[%emt 0:00:00]} 3. Nc3 {[%emt 0:00:00]} Bb4 {[%emt 0:00:00]} 4. Qc2 {[%emt 0:01:30]} O-O {[%emt 0:00:00]} 5. Bg5 {[%emt 0:00:00]} c5 {[%emt 0:01:00]} 6. e3 {[%emt 0:00:00]} d5 {[%emt 0:02:30]} 7. Nf3 {[%emt 0:06:30]} Nc6 {[%emt 0:05:30]} 8. Rd1 {[%emt 0:00:30]} cxd4 {[%emt 0:03:30]} 9. Nxd4 {[%emt 0:01:30]} Qe7 {[%emt 0:03:30]} 10. cxd5 {[%emt 0:04:30]} exd5 {[%emt 0:01:30]} 11. Be2 {[%emt 0:01:30]} Be6 {[%emt 0:05:30]} 12. O-O {[%emt 0:00:30]} Rfd8 {[%emt 0:17:30]} 13. Qb3 {[%emt 0:04:30]} Bxc3 {[%emt 0:04:30]} 14. Qxc3 {[%emt 0:00:30]} Rac8 {[%emt 0:07:02]} 15. Qd2 {[%emt 0:03:30]} Qb4 {[%emt 0:07:22]} 16. Nxc6 {[%emt 0:07:30]} Qxd2 {[%emt 0:00:25]} 17. Rxd2 {[%emt 0:01:30]} Rxc6 {[%emt 0:02:20]} 18. Bf3 {[%emt 0:00:30]} Rdd6 {[%emt 0:02:21]} 19. Bxf6 {[%emt 0:00:30]} gxf6 {[%emt 0:00:09]} 20. Rfd1 {[%emt 0:00:30]} Rd7 {[%emt 0:01:33]} 21. h3 {[%emt 0:05:30]} Rcd6 {[%emt 0:01:22]} 22. Rd4 {[%emt 0:01:30]} f5 {[%emt 0:01:11]} 23. g4 {[%emt 0:01:30]} fxg4 {[%emt 0:01:18]} 24. hxg4 {[%emt 0:00:30]} Ra6 {[%emt 0:00:07]} 25. a3 {[%emt 0:00:30]} Rb6 {[%emt 0:00:23]} 26. e4 {[%emt 0:02:30]} dxe4 {[%emt 0:00:32]} 27. Rxd7 {[%emt 0:00:30]} Bxd7 {[%emt 0:00:28]} 28. Bxe4 {[%emt 0:05:30]} Bxg4 {[%emt 0:00:29]} 29. Rd8+ {[%emt 0:00:37]} Kg7 {[%emt 0:00:06]} 30. Rb8 {[%emt 0:00:58]} Rxb2 {[%emt 0:00:12]} 31. Rxb7 {[%emt 0:00:00]} Rxb7 {[%emt 0:00:56]} 32. Bxb7 {[%emt 0:00:28]} Kf6 {[%emt 0:00:00]} 33. Kh2 {[%emt 0:00:27]} Ke5 {[%emt 0:00:19]} 34. Kg3 {[%emt 0:00:30]} Bf5 {[%emt 0:00:36]} 35. f4+ {[%emt 0:00:30]} Kd4 {[%emt 0:00:15]} 36. Bc6 {[%emt 0:00:30]} Be4 {[%emt 0:00:44]} 37. Be8 {[%emt 0:00:30]} f6 {[%emt 0:01:13]} 38. Kg4 {[%emt 0:00:30]} Kc3 {[%emt 0:00:42]} 39. Kh4 {[%emt 0:00:30]} Bc2 {[%emt 0:00:35]} 40. Kh5 {[%emt 0:01:57]} a5 {[%emt 0:00:30]} 41. Kh6 {[%emt 0:00:30]} Kd4 {[%emt 0:00:51]} 42. Kh5 {[%emt 0:02:51]} Ke4 {[%emt 0:00:36]} 43. Kg4 {[%emt 0:00:28]} h5+ {[%emt 0:00:17]} 44. Kg3 {[%emt 0:05:24]} h4+ {[%emt 0:00:28]} 45. Kg4 {[%emt 0:01:13]} Bd1+ {[%emt 0:00:37]} 46. Kxh4 {[%emt 0:00:38]} Kxf4 {[%emt 0:00:30]} 47. Bd7 {[%emt 0:00:00]} f5 {[%emt 0:00:11]} 48. Bxf5 {[%emt 0:00:22]} Kxf5 {[%emt 0:00:30]} 49. Kg3 {[%emt 0:00:00]} Ke4 {[%emt 0:00:00]} 50. Kf2 {[%emt 0:00:13]} Kd3 {[%emt 0:00:00]} 51. Ke1 {[%emt 0:00:10]} Bh5 {[%emt 0:00:00]} 52. Kf2 {[%emt 0:00:54]} Kc3 {[%emt 0:00:26]} 53. Ke3 {[%emt 0:00:30]} Kb3 {[%emt 0:00:00]} 54. a4 {[%emt 0:00:19]} Kxa4 {[%emt 0:00:00]} 55. Kd3 {[%emt 0:00:00]} Kb3 {[%emt 0:00:00]} 0-1

[Event "5th Ordu Open 2019"]
[Site "Ordu"]
[Date "2019.05.04"]
[Round "8.1"]
[White "Pacher, Milan"]
[Black "Dogan, Nazmi Can"]
[Result "1-0"]
[ECO "C78"]
[WhiteElo "2396"]
[BlackElo "2214"]
[Annotator "NA"]
[PlyCount "149"]
[EventDate "2019.04.29"]
[EventType "swiss"]
[EventCountry "TUR"]
[SourceTitle "playchess.com"]
[Source "ChessBase"]
[SourceQuality "1"]
[TimeControl "5400+30"]

1. e4 {[%emt 0:02:30]} e5 {[%emt 0:00:30]} 2. Nf3 {[%emt 0:00:30]} Nc6 {[%emt 0:00:00]} 3. Bb5 {[%emt 0:00:00]} a6 {[%emt 0:00:00]} 4. Ba4 {[%emt 0:00:00]} Nf6 {[%emt 0:00:30]} 5. O-O {[%emt 0:00:30]} Bc5 {[%emt 0:00:00]} 6. d3 {[%emt 0:00:00]} d6 {[%emt 0:00:00]} 7. c3 {[%emt 0:00:00]} Ba7 {[%emt 0:00:30]} 8. Nbd2 {[%emt 0:02:30]} O-O {[%emt 0:00:30]} 9. h3 {[%emt 0:00:30]} Ne7 {[%emt 0:00:30]} 10. Re1 {[%emt 0:00:30]} Ng6 {[%emt 0:02:30]} 11. Nf1 {[%emt 0:00:30]} d5 {[%emt 0:04:30]} 12. Bg5 {[%emt 0:03:30]} dxe4 {[%emt 0:02:30]} 13. dxe4 {[%emt 0:00:00]} Qxd1 {[%emt 0:07:30]} 14. Raxd1 {[%emt 0:00:00]} Be6 {[%emt 0:00:30]} 15. Bb3 {[%emt 0:02:30]} Bxb3 {[%emt 0:08:30]} 16. axb3 {[%emt 0:00:00]} Ne8 {[%emt 0:04:30]} 17. Be3 {[%emt 0:11:00]} Bxe3 {[%emt 0:03:30]} 18. Nxe3 {[%emt 0:00:00]} f6 {[%emt 0:08:30]} 19. Nd2 {[%emt 0:08:00]} Nd6 {[%emt 0:08:30]} 20. Nec4 {[%emt 0:01:30]} Nxc4 {[%emt 0:00:30]} 21. Nxc4 {[%emt 0:00:30]} a5 {[%emt 0:00:30]} 22. Rd7 {[%emt 0:07:30]} Rfc8 {[%emt 0:00:30]} 23. Red1 {[%emt 0:03:30]} Nf8 {[%emt 0:00:30]} 24. R7d5 {[%emt 0:00:30]} b6 {[%emt 0:00:30]} 25. Ne3 {[%emt 0:01:30]} a4 {[%emt 0:08:30]} 26. b4 {[%emt 0:05:30]} a3 {[%emt 0:01:30]} 27. bxa3 {[%emt 0:00:30]} Rxa3 {[%emt 0:00:00]} 28. c4 {[%emt 0:00:30]} Rca8 {[%emt 0:09:00]} 29. c5 {[%emt 0:14:30]} bxc5 {[%emt 0:03:30]} 30. Rxc5 {[%emt 0:00:30]} Ra1 {[%emt 0:00:30]} 31. Rxa1 {[%emt 0:00:30]} Rxa1+ {[%emt 0:00:30]} 32. Kh2 {[%emt 0:00:00]} Ne6 {[%emt 0:01:30]} 33. Rc6 {[%emt 0:00:00]} Kf7 {[%emt 0:00:30]} 34. Nd5 {[%emt 0:00:00]} Ra7 {[%emt 0:02:30]} 35. h4 {[%emt 0:01:00]} h5 {[%emt 0:00:30]} 36. g3 {[%emt 0:00:30]} Rb7 {[%emt 0:00:30]} 37. f4 {[%emt 0:00:30]} exf4 {[%emt 0:00:30]} 38. gxf4 {[%emt 0:00:30]} g6 {[%emt 0:00:30]} 39. f5 {[%emt 0:00:30]} gxf5 {[%emt 0:00:30]} 40. exf5 {[%emt 0:00:30]} Nd4 {[%emt 0:00:00]} 41. Rxf6+ {[%emt 0:02:30]} Kg7 {[%emt 0:00:00]} 42. Rg6+ {[%emt 0:00:30]} Kf7 {[%emt 0:00:30]} 43. Rh6 {[%emt 0:00:30]} Rb5 {[%emt 0:01:30]} 44. Rh7+ {[%emt 0:04:30]} Kg8 {[%emt 0:00:30]} 45. Nf6+ {[%emt 0:08:30]} Kf8 {[%emt 0:00:00]} 46. Nd7+ {[%emt 0:00:30]} Kg8 {[%emt 0:00:00]} 47. Nf6+ {[%emt 0:00:30]} Kf8 {[%emt 0:00:30]} 48. Rxc7 {[%emt 0:00:00]} Rxf5 {[%emt 0:08:09]} 49. Nh7+ {[%emt 0:01:00]} Kg8 {[%emt 0:01:12]} 50. Ng5 {[%emt 0:00:30]} Rb5 {[%emt 0:03:37]} 51. Rc8+ {[%emt 0:00:30]} Kg7 {[%emt 0:00:40]} 52. Rc4 {[%emt 0:00:30]} Nf5 {[%emt 0:03:42]} 53. Ne6+ {[%emt 0:02:30]} Kf6 {[%emt 0:00:00]} 54. Nd4 {[%emt 0:00:30]} Rd5 {[%emt 0:00:49]} 55. Nxf5 {[%emt 0:00:30]} Kxf5 {[%emt 0:00:15]} 56. Kg3 {[%emt 0:00:30]} Rd3+ {[%emt 0:00:54]} 57. Kf2 {[%emt 0:00:00]} Rb3 {[%emt 0:00:20]} 58. Ke2 {[%emt 0:00:00]} Ke5 {[%emt 0:00:09]} 59. Kd2 {[%emt 0:00:30]} Kd5 {[%emt 0:00:14]} 60. Rf4 {[%emt 0:00:30]} Ke5 {[%emt 0:01:48]} 61. Kc2 {[%emt 0:00:30]} Rh3 {[%emt 0:00:21]} 62. Rc4 {[%emt 0:00:00]} Kd5 {[%emt 0:00:55]} 63. Rc5+ {[%emt 0:01:00]} Kd4 {[%emt 0:00:56]} 64. Rxh5 {[%emt 0:00:30]} Kc4 {[%emt 0:00:05]} 65. b5 {[%emt 0:02:30]} Rh2+ {[%emt 0:00:30]} 66. Kd1 {[%emt 0:00:30]} Kd3 {[%emt 0:00:00]} 67. Ke1 {[%emt 0:03:27]} Ke3 {[%emt 0:00:00]} 68. Kf1 {[%emt 0:02:28]} Kf3 {[%emt 0:00:00]} 69. Rf5+ {[%emt 0:03:44]} Kg4 {[%emt 0:01:30]} 70. Rf8 {[%emt 0:00:33]} Rb2 {[%emt 0:03:02]} 71. Rb8 {[%emt 0:00:05]} Kf3 {[%emt 0:00:21]} 72. Ke1 {[%emt 0:00:30]} Ke3 {[%emt 0:00:00]} 73. Kd1 {[%emt 0:00:04]} Kd3 {[%emt 0:00:19]} 74. Kc1 {[%emt 0:00:00]} Rb4 {[%emt 0:05:34]} 75. b6 {[%emt 0:01:15]} 1-0

[Event "5th Ordu Open 2019"]
[Site "Ordu"]
[Date "2019.05.04"]
[Round "8.2"]
[White "Isik, Alparslan"]
[Black "Mosadeghpour, Masoud"]
[Result "1-0"]
[ECO "D37"]
[WhiteElo "2233"]
[BlackElo "2514"]
[Annotator "ChessBase"]
[PlyCount "141"]
[EventDate "2019.04.29"]
[EventType "swiss"]
[EventCountry "TUR"]
[SourceTitle "playchess.com"]
[Source "ChessBase"]
[SourceQuality "1"]
[TimeControl "5400+30"]

1. Nf3 {[%emt 0:00:30]} Nf6 {[%emt 0:11:30]} 2. c4 {[%emt 0:00:00]} e6 {[%emt 0:00:30]} 3. d4 {[%emt 0:00:00]} d5 {[%emt 0:00:30]} 4. Nc3 {[%emt 0:00:30]} Be7 {[%emt 0:00:00]} 5. Bf4 {[%emt 0:00:00]} O-O {[%emt 0:00:00]} 6. e3 {[%emt 0:00:00]} b6 {[%emt 0:00:30]} 7. Bd3 {[%emt 0:01:30]} Bb7 {[%emt 0:01:30]} 8. cxd5 {[%emt 0:00:30]} exd5 {[%emt 0:00:30]} 9. Ne5 {[%emt 0:01:30]} Nbd7 {[%emt 0:01:30]} 10. O-O {[%emt 0:03:30]} c5 {[%emt 0:05:30]} 11. Qf3 {[%emt 0:02:30]} a6 {[%emt 0:05:30]} 12. Bf5 {[%emt 0:04:30]} cxd4 {[%emt 0:19:30]} 13. Nxd7 {[%emt 0:09:30]} Nxd7 {[%emt 0:02:30]} 14. Nxd5 {[%emt 0:05:30]} Ne5 {[%emt 0:08:30]} 15. Nxe7+ {[%emt 0:09:30]} Qxe7 {[%emt 0:00:30]} 16. Bxh7+ {[%emt 0:00:00]} Kxh7 {[%emt 0:00:00]} 17. Qh5+ {[%emt 0:00:00]} Kg8 {[%emt 0:00:00]} 18. Qxe5 {[%emt 0:00:00]} Qxe5 {[%emt 0:00:30]} 19. Bxe5 {[%emt 0:00:00]} dxe3 {[%emt 0:00:30]} 20. fxe3 {[%emt 0:00:00]} Rfe8 {[%emt 0:00:30]} 21. Bd4 {[%emt 0:01:00]} b5 {[%emt 0:00:30]} 22. Rf4 {[%emt 0:04:30]} f6 {[%emt 0:00:30]} 23. g4 {[%emt 0:05:30]} Re4 {[%emt 0:10:30]} 24. Rxe4 {[%emt 0:02:30]} Bxe4 {[%emt 0:00:30]} 25. Rc1 {[%emt 0:00:30]} Bd5 {[%emt 0:00:00]} 26. Rc7 {[%emt 0:02:30]} Bxa2 {[%emt 0:02:00]} 27. g5 {[%emt 0:01:30]} Re8 {[%emt 0:00:00]} 28. gxf6 {[%emt 0:01:30]} gxf6 {[%emt 0:00:00]} 29. Rc6 {[%emt 0:00:00]} Re6 {[%emt 0:01:30]} 30. Rxe6 {[%emt 0:02:00]} Bxe6 {[%emt 0:00:30]} 31. Bxf6 {[%emt 0:00:30]} Kf7 {[%emt 0:00:30]} 32. Bd8 {[%emt 0:00:30]} b4 {[%emt 0:05:30]} 33. e4 {[%emt 0:04:30]} b3 {[%emt 0:00:30]} 34. Kf2 {[%emt 0:01:30]} Bg4 {[%emt 0:02:30]} 35. Kg3 {[%emt 0:00:30]} Bh5 {[%emt 0:00:30]} 36. Kf4 {[%emt 0:00:30]} Ke6 {[%emt 0:00:30]} 37. h4 {[%emt 0:00:30]} Bg6 {[%emt 0:00:30]} 38. Ba5 {[%emt 0:00:30]} Bh5 {[%emt 0:00:30]} 39. Bc3 {[%emt 0:00:30]} Bd1 {[%emt 0:00:30]} 40. Ke3 {[%emt 0:00:30]} Bh5 {[%emt 0:01:30]} 41. Kd4 {[%emt 0:06:30]} Bd1 {[%emt 0:00:30]} 42. Kc5 {[%emt 0:01:30]} Bf3 {[%emt 0:00:30]} 43. Kd4 {[%emt 0:08:30]} Bd1 {[%emt 0:00:30]} 44. Ke3 {[%emt 0:00:00]} Bh5 {[%emt 0:00:30]} 45. Kf4 {[%emt 0:00:00]} Bd1 {[%emt 0:00:30]} 46. Kg5 {[%emt 0:00:00]} Bc2 {[%emt 0:00:30]} 47. e5 {[%emt 0:00:00]} Kf7 {[%emt 0:02:26]} 48. h5 {[%emt 0:00:00]} Bd3 {[%emt 0:04:48]} 49. Kh6 {[%emt 0:01:00]} Bc4 {[%emt 0:00:22]} 50. Bb4 {[%emt 0:00:30]} Bd5 {[%emt 0:02:01]} 51. Kg5 {[%emt 0:00:30]} Be4 {[%emt 0:01:01]} 52. Kf4 {[%emt 0:00:00]} Bc2 {[%emt 0:00:42]} 53. Ke3 {[%emt 0:00:00]} Ke6 {[%emt 0:03:49]} 54. Kd4 {[%emt 0:01:30]} Bd1 {[%emt 0:04:25]} 55. h6 {[%emt 0:00:30]} Bc2 {[%emt 0:00:30]} 56. Ba5 {[%emt 0:00:30]} Bh7 {[%emt 0:00:38]} 57. Bc7 {[%emt 0:00:00]} Bg8 {[%emt 0:00:45]} 58. Kc5 {[%emt 0:00:00]} Kd7 {[%emt 0:01:04]} 59. Bd6 {[%emt 0:00:30]} Bh7 {[%emt 0:03:42]} 60. Kb4 {[%emt 0:00:30]} Bg8 {[%emt 0:01:42]} 61. Ka5 {[%emt 0:00:00]} Bh7 {[%emt 0:00:19]} 62. Kxa6 {[%emt 0:00:00]} Bg8 {[%emt 0:00:44]} 63. Kb5 {[%emt 0:00:00]} Bh7 {[%emt 0:00:20]} 64. Kc4 {[%emt 0:00:00]} Bg8+ {[%emt 0:00:00]} 65. Kc3 {[%emt 0:00:30]} Kc6 {[%emt 0:00:06]} 66. Bb8 {[%emt 0:00:00]} Kd7 {[%emt 0:00:15]} 67. Kb4 {[%emt 0:00:00]} Ke7 {[%emt 0:00:14]} 68. Bd6+ {[%emt 0:01:30]} Kd7 {[%emt 0:00:35]} 69. Bf8 {[%emt 0:00:00]} Ke8 {[%emt 0:00:42]} 70. Bg7 {[%emt 0:00:00]} Kd7 {[%emt 0:00:00]} 71. e6+ {[%emt 0:00:00]} 1-0